[Event "*** Biggest EVER Titled Tuesday"]
[Site "Chess.com"]
[Date "2018.04.17"]
[Round "10"]
[White "IMAghasiyevKamal"]
[Black "Superfelix"]
[Result "0-1"]
[WhiteElo "2478"]
[BlackElo "2353"]
[TimeControl "180+2"]
[EndTime "15:20:00 PDT"]
[Termination "Superfelix won by resignation"]

1. e4 {[%clk 0:02:57]} 1... c6 {[%clk 0:02:58.9]} 2. d4 {[%clk 0:02:57.7]} 2...
g6 {[%clk 0:03:00.2]} 3. Nc3 {[%clk 0:02:58.3]} 3... d5 {[%clk 0:03:01.5]} 4.
Nf3 {[%clk 0:02:58]} 4... dxe4 {[%clk 0:03:02.5]} 5. Nxe4 {[%clk 0:02:58.9]}
5... Nf6 {[%clk 0:03:04.4]} 6. Nxf6+ {[%clk 0:02:59.3]} 6... exf6 {[%clk
0:03:06.3]} 7. Bc4 {[%clk 0:02:59.9]} 7... Bg7 {[%clk 0:03:07.3]} 8. O-O {[%clk
0:02:55.3]} 8... O-O {[%clk 0:03:08.2]} 9. h3 {[%clk 0:02:50.7]} 9... a5 {[%clk
0:03:09.7]} 10. a4 {[%clk 0:02:45.3]} 10... Na6 {[%clk 0:03:11]} 11. c3 {[%clk
0:02:42.1]} 11... Nc7 {[%clk 0:03:11.9]} 12. Qb3 {[%clk 0:02:34.7]} 12... Nd5
{[%clk 0:03:12.9]} 13. Re1 {[%clk 0:02:27.7]} 13... Nb6 {[%clk 0:03:01.3]} 14.
Bd3 {[%clk 0:02:22.9]} 14... Be6 {[%clk 0:03:01.9]} 15. Rxe6 {[%clk 0:02:18.5]}
15... fxe6 {[%clk 0:03:01.8]} 16. Qxe6+ {[%clk 0:02:19.3]} 16... Rf7 {[%clk
0:03:00.2]} 17. Bf4 {[%clk 0:02:15.8]} 17... Qd5 {[%clk 0:02:54.6]} 18. Qe2
{[%clk 0:02:16.9]} 18... Kh8 {[%clk 0:02:50.6]} 19. Re1 {[%clk 0:02:15.6]} 19...
Bf8 {[%clk 0:02:49]} 20. Nd2 {[%clk 0:02:04]} 20... Re7 {[%clk 0:02:45.6]} 21.
Be3 {[%clk 0:02:02.3]} 21... Rae8 {[%clk 0:02:45.4]} 22. Nc4 {[%clk 0:02:01.6]}
22... Nxc4 {[%clk 0:02:46.3]} 23. Bxc4 {[%clk 0:02:02.6]} 23... Qd6 {[%clk
0:02:45.8]} 24. Qf3 {[%clk 0:02:01.5]} 24... Bh6 {[%clk 0:02:44]} 25. h4 {[%clk
0:01:43.3]} 25... Bxe3 {[%clk 0:02:43]} 26. fxe3 {[%clk 0:01:43.1]} 26... f5
{[%clk 0:02:42.6]} 27. h5 {[%clk 0:01:44.2]} 27... Kg7 {[%clk 0:02:43.7]} 28.
Re2 {[%clk 0:01:36.4]} 28... Re4 {[%clk 0:02:43.4]} 29. g3 {[%clk 0:01:30.9]}
29... Qf6 {[%clk 0:02:40.9]} 30. Bd3 {[%clk 0:01:30.4]} 30... Rg4 {[%clk
0:02:40.4]} 31. hxg6 {[%clk 0:01:20.2]} 31... hxg6 {[%clk 0:02:42.3]} 32. Rh2
{[%clk 0:01:19.1]} 32... Qg5 {[%clk 0:02:42.6]} 33. Kf2 {[%clk 0:01:19.1]} 33...
Rxg3 {[%clk 0:02:25.9]} 34. Qxg3 {[%clk 0:01:18.2]} 34... Qxg3+ {[%clk 0:02:27]}
35. Kxg3 {[%clk 0:01:19.7]} 35... Rxe3+ {[%clk 0:02:28.6]} 36. Kf4 {[%clk
0:01:20.6]} 36... Rxd3 {[%clk 0:02:30.5]} 37. Ke5 {[%clk 0:01:21.8]} 37... Re3+
{[%clk 0:02:28.7]} 38. Kd6 {[%clk 0:01:22.7]} 38... f4 {[%clk 0:02:30.1]} 39.
Kc7 {[%clk 0:01:24.6]} 39... f3 {[%clk 0:02:30.3]} 40. Kxb7 {[%clk 0:01:25.4]}
40... g5 {[%clk 0:02:31.8]} 41. Kxc6 {[%clk 0:01:26.4]} 41... g4 {[%clk
0:02:33.1]} 42. d5 {[%clk 0:01:28.3]} 42... g3 {[%clk 0:02:34.5]} 43. Rd2 {[%clk
0:01:29.4]} 43... f2 {[%clk 0:02:33.6]} 44. d6 {[%clk 0:01:31.3]} 44... f1=Q
{[%clk 0:02:34.2]} 45. d7 {[%clk 0:01:32.3]} 45... Qc4+ {[%clk 0:02:35.3]} 46.
Kb6 {[%clk 0:01:30.5]} 46... Rd3 {[%clk 0:02:34.4]} 0-1

[Event "*** Biggest EVER Titled Tuesday"]
[Site "Chess.com"]
[Date "2018.04.17"]
[Round "10"]
[White "Blitzstream"]
[Black "HarutyunianTigranK"]
[Result "0-1"]
[WhiteElo "2464"]
[BlackElo "2677"]
[TimeControl "180+2"]
[EndTime "15:20:19 PDT"]
[Termination "HarutyunianTigranK won by checkmate"]

1. d4 {[%clk 0:03:01.9]} 1... Nf6 {[%clk 0:03:00.4]} 2. Bg5 {[%clk 0:03:02.3]}
2... e6 {[%clk 0:03:00.6]} 3. e4 {[%clk 0:03:02.5]} 3... h6 {[%clk 0:03:01.6]}
4. Bxf6 {[%clk 0:03:03.3]} 4... Qxf6 {[%clk 0:03:03.5]} 5. c3 {[%clk 0:03:04.6]}
5... Nc6 {[%clk 0:03:04.6]} 6. Bd3 {[%clk 0:03:04.3]} 6... e5 {[%clk 0:03:05.7]}
7. d5 {[%clk 0:02:51.5]} 7... Bc5 {[%clk 0:03:05.8]} 8. Qf3 {[%clk 0:02:42.1]}
8... Ne7 {[%clk 0:03:05.5]} 9. Qxf6 {[%clk 0:02:27]} 9... gxf6 {[%clk
0:03:07.4]} 10. Ne2 {[%clk 0:02:26.5]} 10... d6 {[%clk 0:03:07.7]} 11. Ng3
{[%clk 0:02:27.5]} 11... a6 {[%clk 0:03:07.6]} 12. f3 {[%clk 0:02:23.4]} 12...
h5 {[%clk 0:03:03]} 13. c4 {[%clk 0:01:41.5]} 13... h4 {[%clk 0:03:01.7]} 14.
Nf5 {[%clk 0:01:42.3]} 14... Bxf5 {[%clk 0:02:51.4]} 15. exf5 {[%clk 0:01:43.3]}
15... Kd7 {[%clk 0:02:52]} 16. Nd2 {[%clk 0:01:42.8]} 16... Rag8 {[%clk
0:02:52.7]} 17. Ne4 {[%clk 0:01:32.1]} 17... Rxg2 {[%clk 0:02:50.2]} 18. Nxf6+
{[%clk 0:01:32.9]} 18... Kd8 {[%clk 0:02:49.9]} 19. O-O-O {[%clk 0:01:32.4]}
19... Bd4 {[%clk 0:02:43.1]} 20. b3 {[%clk 0:01:29.6]} 20... Rxa2 {[%clk
0:02:41]} 21. Ng4 {[%clk 0:01:06.6]} 21... Rh5 {[%clk 0:02:29.6]} 22. f6 {[%clk
0:01:03.4]} 22... Nf5 {[%clk 0:02:29.1]} 23. f4 {[%clk 0:01:02.2]} 23... Ne3
{[%clk 0:02:28.3]} 24. Rdg1 {[%clk 0:00:13.2]} 24... exf4 {[%clk 0:02:21.6]} 25.
Nf2 {[%clk 0:00:07.1]} 25... Rxf2 {[%clk 0:02:17.8]} 26. Rg8+ {[%clk 0:00:06.7]}
26... Kd7 {[%clk 0:02:19]} 27. Rhg1 {[%clk 0:00:07]} 27... Bxf6 {[%clk
0:02:19.1]} 28. Ra8 {[%clk 0:00:06.8]} 28... Rg5 {[%clk 0:02:19.2]} 29. Re1
{[%clk 0:00:07.7]} 29... Rgg2 {[%clk 0:02:15.2]} 30. h3 {[%clk 0:00:06.3]} 30...
Ra2 {[%clk 0:02:10.5]} 31. Bb1 {[%clk 0:00:04.9]} 31... Bb2# {[%clk 0:02:08.8]}
0-1

[Event "*** Biggest EVER Titled Tuesday"]
[Site "Chess.com"]
[Date "2018.04.17"]
[Round "10"]
[White "KRASAVCHIK2002"]
[Black "Safar_From_Afar"]
[Result "1/2-1/2"]
[WhiteElo "2042"]
[BlackElo "2279"]
[TimeControl "180+2"]
[EndTime "15:20:24 PDT"]
[Termination "Game drawn by agreement"]

1. e4 {[%clk 0:02:52]} 1... c5 {[%clk 0:03:00]} 2. Nf3 {[%clk 0:02:52.6]} 2...
d6 {[%clk 0:03:00.7]} 3. d4 {[%clk 0:02:54]} 3... cxd4 {[%clk 0:03:02.5]} 4.
Nxd4 {[%clk 0:02:55.4]} 4... Nf6 {[%clk 0:03:03.9]} 5. Nc3 {[%clk 0:02:56.8]}
5... a6 {[%clk 0:03:05.1]} 6. Be3 {[%clk 0:02:58]} 6... e5 {[%clk 0:03:04]} 7.
Nb3 {[%clk 0:02:58.2]} 7... Be7 {[%clk 0:03:04]} 8. f3 {[%clk 0:02:59.2]} 8...
O-O {[%clk 0:02:43.7]} 9. Qd2 {[%clk 0:02:58.8]} 9... Be6 {[%clk 0:02:42.4]} 10.
O-O-O {[%clk 0:02:59]} 10... Nbd7 {[%clk 0:02:40.9]} 11. g4 {[%clk 0:02:59.8]}
11... b5 {[%clk 0:02:40.7]} 12. g5 {[%clk 0:03:01.2]} 12... b4 {[%clk 0:02:40]}
13. gxf6 {[%clk 0:03:02.3]} 13... bxc3 {[%clk 0:02:36.8]} 14. Qxc3 {[%clk
0:03:04.2]} 14... Nxf6 {[%clk 0:02:37]} 15. Na5 {[%clk 0:03:03.8]} 15... Rc8
{[%clk 0:02:35.9]} 16. Nc6 {[%clk 0:03:04]} 16... Qc7 {[%clk 0:02:31.4]} 17.
Nxe7+ {[%clk 0:03:05.1]} 17... Qxe7 {[%clk 0:02:31]} 18. Qa5 {[%clk 0:03:02.4]}
18... Rc6 {[%clk 0:02:29.8]} 19. Rd2 {[%clk 0:02:59.4]} 19... Nh5 {[%clk
0:02:28.5]} 20. Be2 {[%clk 0:03:00]} 20... Nf4 {[%clk 0:02:26.9]} 21. Bxf4
{[%clk 0:03:00.7]} 21... exf4 {[%clk 0:02:28.8]} 22. Rg1 {[%clk 0:03:01.5]}
22... Rfc8 {[%clk 0:02:26.8]} 23. Kb1 {[%clk 0:03:00.3]} 23... Qa7 {[%clk
0:02:24.6]} 24. Qg5 {[%clk 0:02:52.1]} 24... f6 {[%clk 0:02:22.7]} 25. Qg2
{[%clk 0:02:50.1]} 25... Rb8 {[%clk 0:02:22.3]} 26. b3 {[%clk 0:02:48.6]} 26...
a5 {[%clk 0:02:21]} 27. a4 {[%clk 0:02:46.7]} 27... Bh3 {[%clk 0:02:21.9]} 28.
Qh1 {[%clk 0:02:42.2]} 28... Qe3 {[%clk 0:02:22.7]} 29. Bb5 {[%clk 0:02:36.8]}
29... Qxd2 {[%clk 0:02:22.3]} 30. Bxc6 {[%clk 0:02:37.4]} 30... Rc8 {[%clk
0:02:22.3]} 31. Bd5+ {[%clk 0:02:31.6]} 31... Kf8 {[%clk 0:02:20.1]} 32. Bc4
{[%clk 0:02:31.9]} 32... Rxc4 {[%clk 0:02:20.1]} 33. bxc4 {[%clk 0:02:33.8]}
33... Qb4+ {[%clk 0:02:18.3]} 34. Kc1 {[%clk 0:02:29.4]} 34... Qxc4 {[%clk
0:02:18.9]} 35. Rd1 {[%clk 0:02:26.7]} 35... Qxa4 {[%clk 0:02:17.6]} 36. Qg1
{[%clk 0:02:24.8]} 36... Qa3+ {[%clk 0:02:15.7]} 37. Kd2 {[%clk 0:02:22.5]}
37... Qxf3 {[%clk 0:02:14.6]} 38. Rb1 {[%clk 0:02:19.2]} 38... Qxe4 {[%clk
0:02:15.8]} 39. Qa7 {[%clk 0:02:15.6]} 39... Qg2+ {[%clk 0:02:12.6]} 40. Kc1
{[%clk 0:02:12.9]} 40... Qh1+ {[%clk 0:02:13.7]} 41. Kb2 {[%clk 0:02:09.8]}
41... Qc6 {[%clk 0:02:14.5]} 42. Re1 {[%clk 0:02:04.3]} 42... Bf5 {[%clk
0:02:12.5]} 43. c3 {[%clk 0:01:59.1]} 43... Qb5+ {[%clk 0:02:08.4]} 44. Ka3
{[%clk 0:01:54.6]} 44... f3 {[%clk 0:02:08.7]} 45. Re3 {[%clk 0:01:30.1]}
1/2-1/2

[Event "*** Biggest EVER Titled Tuesday"]
[Site "Chess.com"]
[Date "2018.04.17"]
[Round "10"]
[White "pulvettd"]
[Black "hilary444"]
[Result "0-1"]
[WhiteElo "2528"]
[BlackElo "2535"]
[TimeControl "180+2"]
[EndTime "15:20:46 PDT"]
[Termination "hilary444 won by resignation"]

1. d4 {[%clk 0:03:01.9]} 1... d5 {[%clk 0:02:59.9]} 2. c4 {[%clk 0:03:02.9]}
2... e6 {[%clk 0:03:00.7]} 3. Nc3 {[%clk 0:03:03.9]} 3... Nf6 {[%clk 0:03:00.3]}
4. cxd5 {[%clk 0:03:05.1]} 4... exd5 {[%clk 0:03:02.1]} 5. Bg5 {[%clk
0:03:05.7]} 5... c6 {[%clk 0:03:03]} 6. e3 {[%clk 0:03:06.6]} 6... Bf5 {[%clk
0:02:52.9]} 7. Qf3 {[%clk 0:03:02.3]} 7... Bg6 {[%clk 0:02:53.9]} 8. Bxf6 {[%clk
0:03:03.2]} 8... Qxf6 {[%clk 0:02:55.8]} 9. Qxf6 {[%clk 0:03:03.3]} 9... gxf6
{[%clk 0:02:57.7]} 10. Nf3 {[%clk 0:03:01.3]} 10... Nd7 {[%clk 0:02:57]} 11. g3
{[%clk 0:02:58.9]} 11... O-O-O {[%clk 0:02:52]} 12. Nh4 {[%clk 0:02:59.4]} 12...
Bb4 {[%clk 0:02:50.5]} 13. Bh3 {[%clk 0:02:59.9]} 13... Kc7 {[%clk 0:02:50.3]}
14. O-O {[%clk 0:02:59.3]} 14... Nf8 {[%clk 0:02:44.6]} 15. Rfc1 {[%clk
0:02:55.1]} 15... Kb8 {[%clk 0:02:43.6]} 16. a3 {[%clk 0:02:52.6]} 16... Bd6
{[%clk 0:02:34]} 17. Nf5 {[%clk 0:02:52.8]} 17... Bc7 {[%clk 0:02:33]} 18. b4
{[%clk 0:02:51.9]} 18... Ne6 {[%clk 0:02:32.8]} 19. b5 {[%clk 0:02:48]} 19...
Ng5 {[%clk 0:02:33.7]} 20. Bg4 {[%clk 0:02:33.7]} 20... h5 {[%clk 0:02:33.8]}
21. h4 {[%clk 0:02:04.9]} 21... hxg4 {[%clk 0:02:33]} 22. Ne7 {[%clk 0:02:06.8]}
22... Nf3+ {[%clk 0:02:23.8]} 23. Kg2 {[%clk 0:02:06.3]} 23... Bd6 {[%clk
0:01:45.2]} 24. Nxg6 {[%clk 0:00:42.8]} 24... fxg6 {[%clk 0:01:46.8]} 25. bxc6
{[%clk 0:00:44.7]} 25... bxc6 {[%clk 0:01:47.6]} 26. Na4 {[%clk 0:00:46.6]}
26... Rc8 {[%clk 0:01:48.4]} 27. Ra2 {[%clk 0:00:44.2]} 27... g5 {[%clk
0:01:33.8]} 28. Rac2 {[%clk 0:00:27]} 28... gxh4 {[%clk 0:01:26.4]} 29. gxh4
{[%clk 0:00:28.4]} 29... Rxh4 {[%clk 0:01:25.3]} 30. Rxc6 {[%clk 0:00:27]} 30...
Rh2+ {[%clk 0:01:25.6]} 31. Kf1 {[%clk 0:00:27.4]} 31... Rh1+ {[%clk 0:01:26.8]}
32. Ke2 {[%clk 0:00:28.6]} 0-1

[Event "*** Biggest EVER Titled Tuesday"]
[Site "Chess.com"]
[Date "2018.04.17"]
[Round "10"]
[White "savinspm"]
[Black "BillForster"]
[Result "1-0"]
[WhiteElo "2007"]
[BlackElo "1624"]
[TimeControl "180+2"]
[EndTime "15:20:46 PDT"]
[Termination "savinspm won by checkmate"]

1. e4 {[%clk 0:03:01.9]} 1... c5 {[%clk 0:02:59.2]} 2. Nc3 {[%clk 0:03:02.3]}
2... a6 {[%clk 0:02:58.7]} 3. a4 {[%clk 0:03:01.3]} 3... b6 {[%clk 0:02:52.4]}
4. g3 {[%clk 0:03:01.9]} 4... Bb7 {[%clk 0:02:51.8]} 5. Bg2 {[%clk 0:03:03.4]}
5... e6 {[%clk 0:02:45.9]} 6. d3 {[%clk 0:03:03.1]} 6... Nf6 {[%clk 0:02:40]} 7.
Bg5 {[%clk 0:02:59.2]} 7... Be7 {[%clk 0:02:35.5]} 8. Nge2 {[%clk 0:02:55.1]}
8... h6 {[%clk 0:02:31.1]} 9. Be3 {[%clk 0:02:55.4]} 9... O-O {[%clk 0:02:21.8]}
10. h3 {[%clk 0:02:54]} 10... Nc6 {[%clk 0:02:11.8]} 11. O-O {[%clk 0:02:54.5]}
11... Qc7 {[%clk 0:02:08]} 12. f4 {[%clk 0:02:54.4]} 12... d6 {[%clk 0:01:58.1]}
13. Qd2 {[%clk 0:02:53.3]} 13... Rad8 {[%clk 0:01:56]} 14. f5 {[%clk 0:02:52.6]}
14... e5 {[%clk 0:01:30.5]} 15. g4 {[%clk 0:02:51.8]} 15... Nd4 {[%clk
0:01:29.3]} 16. g5 {[%clk 0:02:48.9]} 16... hxg5 {[%clk 0:01:21.8]} 17. Bxg5
{[%clk 0:02:49]} 17... c4 {[%clk 0:01:06.7]} 18. Ng3 {[%clk 0:02:47.9]} 18...
cxd3 {[%clk 0:01:06]} 19. cxd3 {[%clk 0:02:49.8]} 19... Nb3 {[%clk 0:01:04.7]}
20. Qe2 {[%clk 0:02:44.4]} 20... Nxa1 {[%clk 0:01:04.6]} 21. Rxa1 {[%clk
0:02:44.4]} 21... Ne8 {[%clk 0:00:54.1]} 22. Be3 {[%clk 0:02:41.8]} 22... Nf6
{[%clk 0:00:37.9]} 23. Rf1 {[%clk 0:02:42.1]} 23... Rd7 {[%clk 0:00:33.4]} 24.
Bg5 {[%clk 0:02:37.8]} 24... Rfd8 {[%clk 0:00:30.9]} 25. Bxf6 {[%clk 0:02:36.8]}
25... Bxf6 {[%clk 0:00:30.3]} 26. Nh5 {[%clk 0:02:38.2]} 26... Be7 {[%clk
0:00:26.5]} 27. f6 {[%clk 0:02:39.1]} 27... Bf8 {[%clk 0:00:16]} 28. fxg7 {[%clk
0:02:27.3]} 28... Bxg7 {[%clk 0:00:16.4]} 29. Qg4 {[%clk 0:02:28.3]} 29... f5
{[%clk 0:00:13.9]} 30. Rxf5 {[%clk 0:02:20.6]} 30... Rf7 {[%clk 0:00:11.3]} 31.
Nf6+ {[%clk 0:02:04.9]} 31... Kf8 {[%clk 0:00:10.3]} 32. Nfd5 {[%clk 0:02:03.3]}
32... Qc5+ {[%clk 0:00:10.2]} 33. Kh2 {[%clk 0:02:02.3]} 33... Rxf5 {[%clk
0:00:10.6]} 34. Qxf5+ {[%clk 0:02:00.1]} 34... Kg8 {[%clk 0:00:10.8]} 35. Ne7+
{[%clk 0:01:58.9]} 35... Kh8 {[%clk 0:00:11.3]} 36. Qh5+ {[%clk 0:01:59]} 36...
Bh6 {[%clk 0:00:09.9]} 37. Qxh6# {[%clk 0:02:00.1]} 1-0

[Event "*** Biggest EVER Titled Tuesday"]
[Site "Chess.com"]
[Date "2018.04.17"]
[Round "10"]
[White "murmah2003"]
[Black "Koksik_13"]
[Result "0-1"]
[WhiteElo "2531"]
[BlackElo "2513"]
[TimeControl "180+2"]
[EndTime "15:20:47 PDT"]
[Termination "Koksik_13 won by resignation"]

1. d4 {[%clk 0:03:01.9]} 1... e6 {[%clk 0:02:59.4]} 2. Nf3 {[%clk 0:03:03.3]}
2... d5 {[%clk 0:03:00.1]} 3. c4 {[%clk 0:03:04.6]} 3... Nf6 {[%clk 0:03:01.7]}
4. Nc3 {[%clk 0:03:04.4]} 4... Be7 {[%clk 0:03:03.3]} 5. Bf4 {[%clk 0:03:04.4]}
5... O-O {[%clk 0:03:04.7]} 6. e3 {[%clk 0:03:04.1]} 6... a6 {[%clk 0:03:05.1]}
7. cxd5 {[%clk 0:02:49.5]} 7... exd5 {[%clk 0:03:01.7]} 8. h3 {[%clk 0:02:50.5]}
8... c6 {[%clk 0:03:03]} 9. Bd3 {[%clk 0:02:50.3]} 9... Nbd7 {[%clk 0:03:04.6]}
10. O-O {[%clk 0:02:51]} 10... Re8 {[%clk 0:03:06.1]} 11. Rb1 {[%clk 0:02:50.7]}
11... Nf8 {[%clk 0:03:07.6]} 12. b4 {[%clk 0:02:51.5]} 12... Ng6 {[%clk
0:03:08.9]} 13. Bh2 {[%clk 0:02:51]} 13... Bd6 {[%clk 0:03:10.3]} 14. Bxd6
{[%clk 0:02:47.4]} 14... Qxd6 {[%clk 0:03:12.2]} 15. a4 {[%clk 0:02:48.2]} 15...
Ne4 {[%clk 0:02:53.4]} 16. Qc2 {[%clk 0:02:17.7]} 16... Bf5 {[%clk 0:02:51.2]}
17. Nd2 {[%clk 0:02:09.4]} 17... Nh4 {[%clk 0:02:46.3]} 18. Ndxe4 {[%clk
0:01:21.1]} 18... dxe4 {[%clk 0:02:43.4]} 19. Nxe4 {[%clk 0:01:22.5]} 19... Qg6
{[%clk 0:02:43.2]} 20. f3 {[%clk 0:01:23.9]} 20... Bxh3 {[%clk 0:02:21.6]} 21.
Rf2 {[%clk 0:01:22]} 21... f5 {[%clk 0:02:06.8]} 22. Nc5 {[%clk 0:00:21.3]}
22... Rxe3 {[%clk 0:02:04.8]} 23. Rb3 {[%clk 0:00:19]} 23... Re1+ {[%clk
0:01:54.1]} 24. Kh2 {[%clk 0:00:16.5]} 24... Bxg2 {[%clk 0:01:51.8]} 25. Bc4+
{[%clk 0:00:15.5]} 25... Kh8 {[%clk 0:01:51.8]} 26. Rxg2 {[%clk 0:00:15.9]}
26... Qh6 {[%clk 0:01:43.2]} 27. Kg3 {[%clk 0:00:12.4]} 27... Nxg2 {[%clk
0:01:36.8]} 28. Qxg2 {[%clk 0:00:14.2]} 28... f4+ {[%clk 0:01:38.1]} 29. Kf2
{[%clk 0:00:14.6]} 29... Qh4+ {[%clk 0:01:39.6]} 0-1

[Event "*** Biggest EVER Titled Tuesday"]
[Site "Chess.com"]
[Date "2018.04.17"]
[Round "10"]
[White "TheBigBoss04"]
[Black "IMVoja"]
[Result "1/2-1/2"]
[WhiteElo "2518"]
[BlackElo "2327"]
[TimeControl "180+2"]
[EndTime "15:20:50 PDT"]
[Termination "Game drawn by repetition"]

1. d4 {[%clk 0:03:01.9]} 1... Nf6 {[%clk 0:02:59.9]} 2. c4 {[%clk 0:03:03.5]}
2... c5 {[%clk 0:03:00.4]} 3. d5 {[%clk 0:03:04.3]} 3... b5 {[%clk 0:03:01.9]}
4. Qc2 {[%clk 0:03:05.9]} 4... Na6 {[%clk 0:03:01.8]} 5. a3 {[%clk 0:03:04.7]}
5... bxc4 {[%clk 0:03:01.5]} 6. e4 {[%clk 0:03:06.1]} 6... d6 {[%clk 0:02:55.3]}
7. Bxc4 {[%clk 0:03:06.8]} 7... Nc7 {[%clk 0:02:55.4]} 8. Nf3 {[%clk 0:03:05.7]}
8... g6 {[%clk 0:02:54.1]} 9. O-O {[%clk 0:03:06.6]} 9... Bg7 {[%clk 0:02:55.1]}
10. Nc3 {[%clk 0:03:08.3]} 10... O-O {[%clk 0:02:56]} 11. Re1 {[%clk 0:03:09.8]}
11... a5 {[%clk 0:02:42.5]} 12. h3 {[%clk 0:03:10.1]} 12... Rb8 {[%clk
0:02:41.3]} 13. Bf4 {[%clk 0:03:07.8]} 13... e5 {[%clk 0:02:33.3]} 14. dxe6
{[%clk 0:03:08.2]} 14... Nxe6 {[%clk 0:02:30.1]} 15. Bg3 {[%clk 0:03:08.4]}
15... Nh5 {[%clk 0:02:29.6]} 16. Bh2 {[%clk 0:03:06.3]} 16... Nd4 {[%clk
0:02:30.1]} 17. Nxd4 {[%clk 0:03:07.2]} 17... Bxd4 {[%clk 0:02:30.1]} 18. Rad1
{[%clk 0:03:08.1]} 18... Be6 {[%clk 0:02:27.5]} 19. Bxe6 {[%clk 0:03:04.3]}
19... fxe6 {[%clk 0:02:27.8]} 20. Rxd4 {[%clk 0:03:05.1]} 20... cxd4 {[%clk
0:02:27.2]} 21. Ne2 {[%clk 0:03:06.7]} 21... Qb6 {[%clk 0:02:17.8]} 22. Qc4
{[%clk 0:03:05.8]} 22... d3 {[%clk 0:01:47.5]} 23. Nd4 {[%clk 0:02:52.1]} 23...
Qxb2 {[%clk 0:01:33.6]} 24. Qxe6+ {[%clk 0:02:37.9]} 24... Kh8 {[%clk
0:01:32.6]} 25. Nf3 {[%clk 0:02:20.8]} 25... Nf4 {[%clk 0:01:13.6]} 26. Qxd6
{[%clk 0:02:09.4]} 26... Rbd8 {[%clk 0:01:08.5]} 27. Qc7 {[%clk 0:02:03.6]}
27... Qf6 {[%clk 0:00:28.8]} 28. e5 {[%clk 0:01:58.6]} 28... Nxh3+ {[%clk
0:00:24.2]} 29. Kh1 {[%clk 0:01:35.1]} 29... Nxf2+ {[%clk 0:00:22.9]} 30. Kg1
{[%clk 0:01:36.6]} 30... Nh3+ {[%clk 0:00:23.9]} 31. Kh1 {[%clk 0:01:37.8]}
31... Nf2+ {[%clk 0:00:23.8]} 32. Kg1 {[%clk 0:01:38.9]} 32... Nh3+ {[%clk
0:00:24.7]} 33. Kh1 {[%clk 0:01:40.4]} 33... Nf2+ {[%clk 0:00:20.8]} 34. Kg1
{[%clk 0:01:40.8]} 1/2-1/2

[Event "*** Biggest EVER Titled Tuesday"]
[Site "Chess.com"]
[Date "2018.04.17"]
[Round "10"]
[White "Martins-BR"]
[Black "Triumphmate"]
[Result "1-0"]
[WhiteElo "2236"]
[BlackElo "2169"]
[TimeControl "180+2"]
[EndTime "15:20:50 PDT"]
[Termination "Martins-BR won by resignation"]

1. e4 {[%clk 0:03:01.9]} 1... d5 {[%clk 0:02:59.9]} 2. exd5 {[%clk 0:03:02.1]}
2... Nf6 {[%clk 0:03:00.2]} 3. Nf3 {[%clk 0:03:02.4]} 3... Bg4 {[%clk
0:03:00.9]} 4. Bb5+ {[%clk 0:03:02.1]} 4... c6 {[%clk 0:03:00.9]} 5. dxc6 {[%clk
0:03:02]} 5... Nxc6 {[%clk 0:03:02.8]} 6. Nc3 {[%clk 0:03:01]} 6... e6 {[%clk
0:03:02.9]} 7. O-O {[%clk 0:02:59.7]} 7... Bd6 {[%clk 0:03:02.9]} 8. h3 {[%clk
0:02:57.4]} 8... Bh5 {[%clk 0:03:02]} 9. d4 {[%clk 0:02:55.4]} 9... h6 {[%clk
0:02:57.7]} 10. Be3 {[%clk 0:02:55]} 10... O-O {[%clk 0:02:57.7]} 11. Be2 {[%clk
0:02:54.5]} 11... a6 {[%clk 0:02:54.9]} 12. Nh4 {[%clk 0:02:54.3]} 12... Bxe2
{[%clk 0:02:51.5]} 13. Qxe2 {[%clk 0:02:53.9]} 13... Nd5 {[%clk 0:02:53]} 14.
Nxd5 {[%clk 0:02:46.6]} 14... Qxh4 {[%clk 0:02:51.3]} 15. Nc3 {[%clk 0:02:43.1]}
15... Nxd4 {[%clk 0:02:49.2]} 16. Bxd4 {[%clk 0:02:41.7]} 16... Qxd4 {[%clk
0:02:50.9]} 17. Rad1 {[%clk 0:02:39.4]} 17... Qe5 {[%clk 0:02:52.2]} 18. Qxe5
{[%clk 0:02:39.4]} 18... Bxe5 {[%clk 0:02:54.1]} 19. Rd7 {[%clk 0:02:33.7]}
19... Bxc3 {[%clk 0:02:53.8]} 20. bxc3 {[%clk 0:02:34.3]} 20... b5 {[%clk
0:02:55.1]} 21. Rfd1 {[%clk 0:02:33.3]} 21... Rac8 {[%clk 0:02:56]} 22. R1d3
{[%clk 0:02:34.1]} 22... Rc6 {[%clk 0:02:54.6]} 23. R7d6 {[%clk 0:02:32.7]}
23... Rfc8 {[%clk 0:02:54.1]} 24. Rxc6 {[%clk 0:02:32.9]} 24... Rxc6 {[%clk
0:02:55.8]} 25. Kf1 {[%clk 0:02:34.1]} 25... Kf8 {[%clk 0:02:56.5]} 26. Ke2
{[%clk 0:02:33.2]} 26... Ke7 {[%clk 0:02:57.9]} 27. Rg3 {[%clk 0:02:30.4]} 27...
g5 {[%clk 0:02:56.4]} 28. Kd2 {[%clk 0:02:30.8]} 28... f5 {[%clk 0:02:57]} 29.
Rd3 {[%clk 0:02:30.7]} 29... e5 {[%clk 0:02:57.6]} 30. f3 {[%clk 0:02:26.9]}
30... Ke6 {[%clk 0:02:57.3]} 31. Ke3 {[%clk 0:02:27]} 31... h5 {[%clk 0:02:53]}
32. g3 {[%clk 0:02:23.4]} 32... f4+ {[%clk 0:02:49.8]} 33. gxf4 {[%clk
0:02:21.5]} 33... exf4+ {[%clk 0:02:48.6]} 34. Kd2 {[%clk 0:02:08.2]} 34... Ke5
{[%clk 0:02:47]} 35. Ke2 {[%clk 0:02:06.1]} 35... Rd6 {[%clk 0:02:31.6]} 36. a3
{[%clk 0:02:03.4]} 36... Rxd3 {[%clk 0:02:18.2]} 37. cxd3 {[%clk 0:02:04.3]}
37... Kd5 {[%clk 0:02:19.5]} 38. Kf2 {[%clk 0:01:54.3]} 38... a5 {[%clk
0:02:20.2]} 39. Ke2 {[%clk 0:01:51.5]} 39... Kc5 {[%clk 0:02:21.4]} 40. Kd2
{[%clk 0:01:43.4]} 40... h4 {[%clk 0:02:18.3]} 41. Ke2 {[%clk 0:01:38.7]} 41...
b4 {[%clk 0:02:11.3]} 42. axb4+ {[%clk 0:01:22.2]} 42... axb4 {[%clk 0:02:03.7]}
43. d4+ {[%clk 0:01:23.2]} 43... Kc4 {[%clk 0:01:58.2]} 44. cxb4 {[%clk
0:01:24.1]} 44... Kxb4 {[%clk 0:01:58.8]} 45. Kd3 {[%clk 0:01:24.5]} 45... Kb5
{[%clk 0:01:52.1]} 46. Ke4 {[%clk 0:01:23.6]} 46... Kc4 {[%clk 0:01:53.2]} 47.
Kf5 {[%clk 0:01:24.4]} 47... Kxd4 {[%clk 0:01:53.2]} 48. Kxg5 {[%clk 0:01:24.7]}
48... Ke3 {[%clk 0:01:54.3]} 49. Kg4 {[%clk 0:01:24.5]} 49... Kf2 {[%clk
0:01:55]} 50. Kxf4 {[%clk 0:01:25.5]} 1-0